bitfinex/quotes_SOLUSD_20260108
["timestamp","ask_amount","ask_price","bid_price","bid_amount"]
[1767887272944,7.37517516,135.59,135.58,5.47957532]
[1767887273934,7.37517516,135.59,135.57,6.15813737]
[1767887274338,7.37408745,135.61,135.59,0.67856205]
[1767887274649,7.37408745,135.61,135.59,6.15813737]
[1767887275511,103.0,135.62,135.59,6.15813737]
[1767887275650,103.0,135.62,135.6,6.15813737]
[1767887275849,6.8801107,135.64,135.61,0.67856205]
[1767887276152,6.8801107,135.64,135.61,5.47957532]
[1767887276352,32.68401147,135.64,135.61,5.47957532]
[1767887277059,32.68401147,135.64,135.6,5.47957532]
[1767887278034,32.68401147,135.64,135.6,6.15813737]
[1767887278755,32.68401147,135.64,135.6,0.67856205]
[1767887279055,32.68401147,135.64,135.61,6.15813737]
[1767887279461,33.40582282,135.64,135.6,5.47957532]
[1767887280369,0.72181135,135.62,135.52,5.47957532]
[1767887280570,1.00613449,135.6,135.56,5.47957532]
[1767887280863,7.37408745,135.61,135.58,5.47957532]
[1767887281238,7.37408745,135.61,135.6,5.47957532]
[1767887281764,7.37376112,135.62,135.6,6.15813737]
[1767887282145,7.37376112,135.62,135.58,13.46]
[1767887282460,7.37376112,135.62,135.6,5.47957532]
[1767887283164,7.37376112,135.62,135.58,13.46]
[1767887283363,0.66000698,135.61,135.57,5.47957532]
[1767887283744,25.80762043,135.62,135.57,5.47957532]
[1767887284261,25.80762043,135.62,135.57,6.19591077]
[1767887284467,7.37376112,135.62,135.61,5.47957532]
[1767887284961,7.37376112,135.62,135.6,5.47957532]
[1767887285555,7.37215158,135.65,135.62,0.71633545]
[1767887285755,7.37215158,135.65,135.63,5.47957532]
[1767887286352,7.37215158,135.65,135.62,5.47957532]
[1767887286554,7.37215158,135.65,135.62,2.22925722]
[1767887286987,25.8019341,135.65,135.62,2.22925722]
[1767887287154,26.46194108,135.65,135.62,2.16925722]
[1767887287460,0.66000698,135.63,135.57,7.37616814]
[1767887287646,0.28432314,135.64,135.61,2.22925722]
[1767887288355,0.28432314,135.64,135.61,2.16925722]
[1767887288561,18.42978252,135.65,135.62,2.22925722]
[1767887289254,18.42978252,135.65,135.63,2.22925722]
[1767887289456,18.42978252,135.65,135.63,0.71925722]
[1767887289651,7.3713696,135.66,135.61,0.71633545]
[1767887289968,7.3713696,135.66,135.64,2.22925722]
[1767887290370,0.14216157,135.68,135.64,2.22925722]
[1767887290672,128.1052331,135.69,135.64,2.22925722]
[1767887290673,109.86578987,135.69,135.64,2.22925722]
[1767887290854,109.86578987,135.69,135.66,2.22925722]
[1767887291174,109.86578987,135.69,135.63,7.37298326]
[1767887291175,103.0,135.69,135.63,7.37298326]
[1767887291373,25.79599055,135.68,135.65,2.22925722]
[1767887291873,0.34304808,135.66,135.52,36.89353996]
[1767887292071,2.51358036,135.67,135.52,36.89353996]
[1767887292072,0.34614137,135.63,135.54,7.37764723]
[1767887292274,0.34614137,135.63,135.55,20.83713385]
[1767887292458,6.6801107,135.63,135.57,2.22925722]
[1767887292647,6.6801107,135.63,135.57,15.68925722]
[1767887292848,4.963761,135.67,135.57,15.68925722]
[1767887292849,0.6555014,135.67,135.59,2.22925722]
[1767887293048,7.61993524,135.67,135.62,0.72119091]
[1767887293274,6.82227227,135.67,135.63,2.22925722]
[1767887293479,6.82227227,135.67,135.63,2.16925722]
[1767887293774,7.3713696,135.66,135.64,2.95044813]
[1767887293959,7.3713696,135.66,135.61,13.46]
[1767887294278,25.7997936,135.66,135.62,2.22925722]
[1767887294484,25.7997936,135.66,135.64,2.22925722]
[1767887294660,25.7997936,135.66,135.61,13.46]
[1767887294982,25.7997936,135.66,135.63,2.22925722]
[1767887295160,25.7997936,135.66,135.61,13.46]
[1767887295366,25.7997936,135.66,135.62,2.22925722]
[1767887295860,25.7997936,135.66,135.62,2.95044813]
[1767887296583,25.7997936,135.66,135.63,6.19360024]
[1767887297758,7.3713696,135.66,135.65,5.47240933]
[1767887297959,6.81903179,135.67,135.65,5.47240933]
[1767887298159,7.37046053,135.68,135.65,5.47240933]
[1767887298359,7.37046053,135.68,135.64,0.72119091]
[1767887298360,110.36985562,135.69,135.67,5.47240933]
[1767887299465,0.6555014,135.68,135.53,36.37448807]
[1767887299665,0.6555014,135.67,135.59,13.46]
[1767887299875,0.6555014,135.65,135.61,5.47240933]
[1767887301280,0.6555014,135.64,135.6,5.47240933]
[1767887302166,7.37300007,135.63,135.6,5.47240933]
[1767887302362,7.37300007,135.63,135.57,20.83609411]
[1767887302670,7.37300007,135.63,135.6,8.89643775]
[1767887303577,25.80429357,135.64,135.6,8.89643775]
[1767887303882,26.45979497,135.64,135.6,8.89643775]
[1767887305377,26.45979497,135.64,135.57,20.83609411]
[1767887305585,0.6555014,135.61,135.6,8.89643775]
[1767887305757,0.6555014,135.61,135.57,20.83609411]
[1767887305758,7.37354372,135.62,135.57,20.83609411]
[1767887305962,7.37354372,135.62,135.6,8.72693915]
[1767887306674,0.28432314,135.61,135.57,8.89643775]
[1767887306874,0.28432314,135.61,135.56,9.61762866]
[1767887307483,7.37463126,135.6,135.56,9.61762866]
[1767887307668,25.81120943,135.6,135.56,9.61762866]
[1767887310166,25.81120943,135.6,135.54,8.89643775]
[1767887310167,5.24808414,135.59,135.54,8.89643775]
[1767887310384,10.20804982,135.59,135.52,13.46]
[1767887310567,0.28432314,135.57,135.52,13.46]
[1767887310773,11.92819484,135.54,135.42,0.2]
[1767887310981,6.96443384,135.52,135.47,8.89643775]
[1767887311191,0.28432314,135.52,135.49,8.89643775]
[1767887311495,6.96443384,135.52,135.45,13.46]
[1767887311790,7.37952918,135.51,135.47,8.89643775]
[1767887311998,25.82835214,135.51,135.47,8.89643775]
[1767887312490,25.82835214,135.51,135.45,13.46]
[1767887312491,7.37860814,135.53,135.49,9.55666739]
[1767887312692,0.93850424,135.56,135.52,8.89643775]
[1767887313015,7.37680731,135.56,135.54,8.89643775]
[1767887313188,41.83691734,135.6,135.55,0.66022964]
[1767887313189,18.43850982,135.59,135.55,0.66022964]
[1767887313392,18.43850982,135.59,135.56,8.89643775]
[1767887313568,25.81368498,135.59,135.56,8.89643775]
[1767887314192,0.71590332,135.64,135.58,9.55666739]
[1767887314397,0.71590332,135.64,135.59,8.89643775]
[1767887314893,6.6801107,135.62,135.59,8.89643775]
[1767887315575,7.37408745,135.61,135.58,0.66022964]
[1767887315774,7.37408745,135.61,135.6,8.89643775]
[1767887316071,7.37300007,135.63,135.6,8.89643775]
[1767887316283,8.02718117,135.63,135.6,8.89643775]
[1767887316494,0.28432314,135.62,135.6,8.89643775]
[1767887316690,0.99960923,135.62,135.58,8.89643775]
[1767887316906,0.65479215,135.61,135.56,0.66022964]
[1767887317594,7.37463126,135.6,135.56,0.66022964]
[1767887317779,7.37463126,135.6,135.56,9.55666739]
[1767887317978,1.00022646,135.59,135.54,13.46]
[1767887318300,1.00022646,135.59,135.54,8.89643775]
[1767887318600,7.37463126,135.6,135.57,8.89643775]
[1767887318898,7.37463126,135.6,135.53,13.46]
[1767887319096,7.37463126,135.6,135.57,8.89643775]
[1767887320207,7.37463126,135.6,135.55,14.12022964]
[1767887320390,7.37463126,135.6,135.57,8.89643775]
[1767887320772,7.37407205,135.62,135.58,9.55666739]
[1767887321097,7.37407205,135.62,135.58,0.66022964]
[1767887321595,7.37407205,135.62,135.57,14.12022964]
[1767887321895,0.59906415,135.61,135.56,8.89643775]
[1767887322098,0.59906415,135.61,135.57,8.89643775]
[1767887322274,25.80848826,135.62,135.58,8.89643775]
[1767887322480,25.80848826,135.62,135.56,0.66022964]
[1767887322481,7.37407205,135.62,135.6,8.89643775]
[1767887322982,7.37407205,135.62,135.61,8.89643775]
[1767887323792,7.37300007,135.63,135.61,8.89643775]
[1767887324291,25.80550025,135.63,135.6,8.89643775]
[1767887324999,8.08781633,135.65,135.59,0.66022964]
[1767887325299,8.08781633,135.65,135.64,8.89643775]
[1767887325300,7.37191301,135.65,135.64,8.89643775]
[1767887325797,18.42748043,135.67,135.64,8.89643775]
[1767887325977,18.42748043,135.67,135.62,0.66022964]
[1767887325978,14.05039371,135.68,135.65,8.89643775]
[1767887326183,14.76629703,135.68,135.65,8.89643775]
[1767887326597,33.19200457,135.68,135.64,8.89643775]
[1767887326906,0.71590332,135.67,135.63,8.89643775]
[1767887327403,0.71590332,135.66,135.62,8.89643775]
[1767887327605,0.71590332,135.66,135.63,8.89643775]
[1767887328178,7.37191301,135.65,135.62,8.89643775]
[1767887328702,25.80169553,135.65,135.62,8.89643775]
[1767887328877,26.51759885,135.65,135.6,23.01666739]
[1767887329081,25.80169553,135.65,135.59,0.66022964]
[1767887329283,0.71590332,135.64,135.59,14.12022964]
[1767887329598,0.71590332,135.62,135.55,23.01666739]
[1767887329802,1.00022646,135.61,135.55,23.01666739]
[1767887330304,7.37463126,135.6,135.56,8.89643775]
[1767887330600,8.09053458,135.6,135.55,23.01666739]
[1767887330905,8.89643775,135.59,135.55,14.12022964]
[1767887331085,34.70764718,135.6,135.55,14.12022964]
[1767887332094,25.81120943,135.6,135.55,14.12022964]
[1767887332295,7.37463126,135.6,135.56,0.66022964]
[1767887332505,16.27106901,135.6,135.55,13.46]
[1767887332704,8.89643775,135.58,135.54,0.66022964]
[1767887333010,7.37463126,135.6,135.56,9.55666739]
[1767887333202,7.37463126,135.6,135.57,0.66022964]
[1767887333513,47.4709718,135.62,135.57,0.66022964]
[1767887333514,7.37357673,135.62,135.58,0.66022964]
[1767887333704,103.0,135.63,135.59,0.66022964]
[1767887334011,8.08826578,135.65,135.61,8.89643775]
[1767887334216,8.08826578,135.65,135.6,0.66022964]
[1767887334396,8.08826578,135.65,135.61,8.89643775]
[1767887334810,6.61343372,135.65,135.6,9.55666739]
[1767887335014,21.35725974,135.65,135.6,0.66022964]
[1767887335187,21.35725974,135.65,135.6,9.55666739]
[1767887335715,21.35725974,135.65,135.61,8.89643775]
[1767887336197,0.71590332,135.61,135.5,0.66022964]
[1767887336402,0.71590332,135.6,135.53,0.66022964]
[1767887336590,1.00022646,135.59,135.53,0.66022964]
[1767887336793,8.89643775,135.58,135.53,0.66022964]
[1767887336995,1.00022646,135.59,135.53,0.66022964]
[1767887337195,0.71590332,135.58,135.52,9.55666739]
[1767887337696,14.17590332,135.6,135.54,9.55666739]
[1767887337910,14.17590332,135.6,135.55,8.89643775]
[1767887338112,13.46,135.6,135.56,0.66022964]
[1767887338321,5.89970501,135.6,135.56,0.66022964]
[1767887340015,5.89970501,135.6,135.56,9.55666739]
[1767887340315,0.71590332,135.59,135.54,9.55666739]
[1767887340528,20.64896754,135.6,135.55,8.89643775]
[1767887341120,20.64896754,135.6,135.56,8.89643775]
[1767887341502,5.89970501,135.6,135.56,8.89643775]
[1767887341707,5.89970501,135.6,135.56,9.55666739]
[1767887342305,5.89970501,135.6,135.57,9.58105156]
[1767887342634,14.74557252,135.64,135.59,9.58105156]
[1767887342795,5.8979652,135.64,135.61,8.89643775]
[1767887343000,5.8979652,135.64,135.6,8.89643775]
[1767887343203,6.5675256,135.64,135.6,8.89643775]
[1767887344020,21.3124386,135.64,135.6,8.89643775]
[1767887345618,21.3124386,135.64,135.58,7.87566666]
[1767887345619,0.70949736,135.63,135.62,8.89643775]
[1767887345816,6.60717999,135.65,135.62,8.89643775]
[1767887345999,0.70949736,135.7,135.65,0.7022128]
[1767887346199,5.89579187,135.69,135.63,0.7022128]
[1767887346404,5.89579187,135.69,135.67,8.89643775]
[1767887346606,5.89579187,135.69,135.66,0.7022128]
[1767887346607,20.63527156,135.69,135.66,8.89643775]
[1767887347722,5.89579187,135.69,135.67,8.89643775]
[1767887348123,5.89579187,135.69,135.66,8.89643775]
[1767887348815,5.89579187,135.69,135.64,0.7022128]
[1767887349014,5.89579187,135.69,135.65,8.89643775]
[1767887349397,0.69533231,135.68,135.64,8.89643775]
[1767887349596,0.69533231,135.68,135.62,0.7022128]
[1767887349825,0.69533231,135.68,135.64,8.89643775]
[1767887350621,0.97979426,135.66,135.62,8.89643775]
[1767887352331,0.97979426,135.66,135.63,8.89643775]
[1767887354322,0.28432314,135.66,135.63,8.89643775]
[1767887354531,0.28432314,135.66,135.63,9.59865055]
[1767887355028,0.97951381,135.67,135.65,8.89643775]
[1767887355402,0.59519067,135.66,135.65,8.79643775]
[1767887355607,0.28432314,135.67,135.65,9.39865055]
[1767887355828,3.68579369,135.66,135.65,8.89643775]
[1767887356305,3.68552228,135.67,135.65,8.89643775]
[1767887359231,13.60628777,135.67,135.62,0.7022128]
[1767887359423,0.70501302,135.65,135.6,0.7022128]
[1767887359728,0.70501302,135.65,135.59,8.89643775]
[1767887359937,0.70501302,135.65,135.6,0.7022128]
[1767887360232,0.70501302,135.65,135.61,8.89643775]
[1767887360413,0.77178968,135.64,135.58,0.7022128]
[1767887360621,3.68677186,135.62,135.61,8.89643775]
[1767887360817,3.6859565,135.65,135.61,8.89643775]
[1767887361020,3.6859565,135.65,135.6,0.7022128]
[1767887361222,3.6859565,135.65,135.64,8.89643775]
[1767887361416,3.6859565,135.65,135.6,8.0766507]
[1767887361617,3.7849565,135.65,135.63,8.89643775]
[1767887362006,3.6859565,135.65,135.62,8.89643775]
[1767887362609,3.6859565,135.65,135.62,5.47334891]
[1767887362813,0.28432314,135.66,135.62,5.47334891]
[1767887363014,5.23504645,135.66,135.62,5.47334891]
[1767887364028,4.95072331,135.66,135.64,5.47334891]
[1767887364241,103.28432314,135.68,135.64,5.47334891]
[1767887364445,103.0,135.68,135.66,6.17556171]
[1767887364662,29.61434592,135.72,135.66,6.17556171]
[1767887364663,16.03999831,135.72,135.67,0.7022128]
[1767887364816,16.03999831,135.72,135.7,5.47334891]
[1767887365112,16.03999831,135.72,135.7,6.17556171]
[1767887365558,16.03999831,135.72,135.7,5.47334891]
[1767887365744,17.51363536,135.72,135.7,6.17556171]
[1767887366038,13.86499831,135.72,135.7,5.47334891]
[1767887366243,1.47352287,135.73,135.7,5.47334891]
[1767887366415,1.47352287,135.73,135.72,5.47334891]
[1767887366833,1.57340503,135.74,135.72,5.47334891]
[1767887367039,1.57340503,135.74,135.67,7.37070928]
[1767887367236,2.28290239,135.74,135.71,5.47334891]
[1767887368350,0.70949736,135.72,135.7,5.47334891]
[1767887368733,0.70949736,135.72,135.69,5.47334891]
[1767887369246,1.47373074,135.71,135.69,2.14182263]
[1767887369831,1.47373074,135.71,135.65,7.37183423]
[1767887370042,1.47373074,135.71,135.69,5.47334891]
[1767887370647,1.47373074,135.71,135.65,7.37171864]
[1767887370852,1.47373074,135.71,135.69,5.47334891]
[1767887370853,2.1832281,135.71,135.69,5.47334891]
[1767887371147,0.28432314,135.73,135.63,5.47334891]
[1767887371148,0.70949736,135.68,135.63,5.47334891]
[1767887372438,2.19327177,135.67,135.63,5.47334891]
[1767887374530,1.47416525,135.67,135.63,6.12781443]
[1767887374931,14.17910652,135.68,135.63,6.12781443]
[1767887376171,14.17910652,135.68,135.65,5.47334891]
[1767887377149,4.94501716,135.67,135.65,5.47334891]
[1767887378438,14.17910652,135.68,135.65,5.47334891]
[1767887378439,0.28432314,135.69,135.65,5.47334891]
[1767887378665,0.28432314,135.69,135.62,7.3733613]
[1767887378666,103.0,135.7,135.67,5.47334891]
[1767887379357,0.71910652,135.69,135.61,13.46]
[1767887379651,0.71910652,135.69,135.66,5.47334891]
[1767887380442,103.0,135.7,135.66,5.47334891]
[1767887380655,103.71910652,135.7,135.67,5.47334891]
[1767887382660,0.71910652,135.69,135.66,5.47334891]
[1767887382957,0.71910652,135.68,135.61,7.37392882]
[1767887383161,0.71910652,135.68,135.65,5.47334891]
[1767887385481,0.71910652,135.68,135.61,7.37386033]
[1767887385765,0.71910652,135.68,135.65,5.47334891]
[1767887390258,0.71910652,135.68,135.63,5.47334891]
[1767887390601,0.71910652,135.66,135.63,5.47334891]
[1767887390865,5.67552359,135.66,135.63,5.47334891]
[1767887391352,0.28432314,135.67,135.65,5.47334891]
[1767887391555,4.95600138,135.67,135.65,5.47334891]
[1767887392066,0.71910652,135.68,135.65,5.47334891]
[1767887392783,0.71910652,135.68,135.65,4.02334891]
[1767887393064,0.71910652,135.68,135.65,3.91745543]
[1767887393445,0.71910652,135.68,135.64,5.47334891]
[1767887393946,0.71910652,135.68,135.63,5.47334891]
[1767887394664,0.61910652,135.66,135.63,5.47334891]
[1767887394979,0.51910652,135.65,135.6,5.37334891]
[1767887395267,13.46,135.64,135.6,5.47334891]
[1767887395444,13.46,135.64,135.6,6.12781443]
[1767887396042,13.46,135.64,135.6,0.65446552]
[1767887396351,13.46,135.64,135.61,5.47334891]
[1767887396745,13.46,135.64,135.6,0.65446552]
[1767887396966,13.46,135.64,135.61,5.47334891]
[1767887397650,13.77690545,135.64,135.61,5.37114784]
[1767887397961,13.46,135.64,135.61,6.02561336]
[1767887398862,6.6801107,135.65,135.61,6.02561336]
[1767887399067,0.28432314,135.64,135.61,6.02561336]
[1767887399749,13.46,135.65,135.63,6.12781443]
[1767887400145,6.6801107,135.67,135.63,6.12781443]
[1767887400466,268.1,135.72,135.66,0.65446552]
[1767887400667,13.46,135.71,135.69,5.47334891]
[1767887400977,103.0,135.72,135.69,5.47334891]
[1767887401267,116.46,135.72,135.69,5.47334891]
[1767887401568,103.0,135.72,135.69,5.47334891]
[1767887401747,13.46,135.71,135.68,5.47334891]
[1767887401947,13.46,135.71,135.66,0.65446552]
[1767887401948,13.46,135.71,135.67,5.47334891]
[1767887402147,13.46,135.71,135.69,5.47334891]
[1767887402349,103.0,135.72,135.7,0.65296581]
[1767887402647,103.28432314,135.72,135.71,5.47334891]
[1767887403673,103.28432314,135.72,135.7,5.47334891]
[1767887404044,103.28432314,135.72,135.71,0.65296581]
[1767887404045,103.0,135.72,135.71,0.65296581]
[1767887404250,0.1,135.74,135.72,0.65296581]
[1767887404549,0.2,135.75,135.69,0.65296581]
[1767887404747,0.2,135.75,135.72,6.12631472]
[1767887404967,13.46,135.76,135.74,5.47334891]
[1767887405168,0.1,135.77,135.74,6.12631472]
[1767887406653,0.1,135.77,135.72,0.67405618]
[1767887406852,0.1,135.77,135.74,5.47334891]
[1767887407176,6.6801107,135.76,135.71,6.14740509]
[1767887407360,20.1401107,135.76,135.73,5.47334891]
[1767887408269,0.28432314,135.75,135.68,0.67405618]
[1767887408470,0.38432314,135.77,135.73,0.67405618]
[1767887408663,0.1,135.77,135.74,6.14740509]
[1767887408861,0.1,135.77,135.75,0.67405618]
[1767887409171,0.2,135.79,135.76,5.47334891]
[1767887409364,0.2,135.79,135.78,5.47334891]
[1767887409566,0.2,135.79,135.78,6.14740509]
[1767887409956,13.46,135.81,135.79,0.67405618]
[1767887410880,0.1,135.82,135.79,0.67405618]
[1767887411058,13.8856875,135.84,135.81,0.67405618]
[1767887411253,0.4256875,135.84,135.81,0.61405618]
[1767887411881,0.4256875,135.84,135.75,0.28432314]
[1767887412266,20.1401107,135.83,135.72,0.28432314]
[1767887412466,0.28432314,135.82,135.78,5.47334891]
[1767887413056,0.4256875,135.84,135.75,0.28432314]
[1767887413256,0.4256875,135.84,135.8,6.14740509]
[1767887413455,0.4256875,135.84,135.81,0.67405618]
[1767887413755,0.4256875,135.84,135.81,0.55405618]
[1767887414165,5.89903641,135.84,135.81,0.55405618]
[1767887415581,0.4256875,135.84,135.81,0.55405618]
[1767887415756,0.4256875,135.84,135.82,5.47334891]
[1767887415961,0.4256875,135.84,135.8,5.47334891]
[1767887416465,0.4256875,135.84,135.8,6.14740509]
[1767887416679,0.4256875,135.84,135.8,0.67405618]
[1767887417357,0.4256875,135.84,135.77,0.67405618]
[1767887417358,5.47334891,135.81,135.77,0.67405618]
[1767887417565,5.89903641,135.84,135.78,0.67405618]
[1767887417868,0.4256875,135.84,135.79,0.67405618]
[1767887418660,5.89903641,135.84,135.79,0.67405618]
[1767887419390,0.4256875,135.84,135.8,0.67405618]
[1767887422179,6.13331046,135.88,135.81,5.47334891]
[1767887422379,6.13331046,135.87,135.81,5.47334891]
[1767887422571,8.86742403,135.88,135.82,8.86742403]
[1767887422771,103.65996155,135.89,135.82,8.86742403]
[1767887423085,103.65996155,135.89,135.84,8.86742403]
[1767887423086,0.65996155,135.89,135.84,8.86742403]
[1767887423291,14.09996155,135.91,135.86,8.86742403]
[1767887423464,0.65996155,135.91,135.86,8.86742403]
[1767887423663,0.65996155,135.91,135.85,8.86742403]
[1767887424177,0.65996155,135.91,135.86,8.86742403]
[1767887424378,6.6801107,135.91,135.87,9.54148021]
[1767887424578,6.6801107,135.91,135.82,0.28432314]
[1767887424764,7.34007225,135.91,135.86,8.86742403]
[1767887425102,0.65996155,135.91,135.86,8.86742403]
[1767887425273,0.65996155,135.91,135.82,7.64669946]
[1767887425581,0.65996155,135.91,135.86,8.86742403]
[1767887426396,25.75423104,135.9,135.86,8.86742403]
[1767887426773,25.75423104,135.9,135.85,0.561877]
[1767887426978,25.75423104,135.9,135.86,8.86742403]
[1767887427605,26.41419259,135.9,135.85,8.86742403]
[1767887428795,26.41419259,135.9,135.85,9.42930103]
[1767887430083,25.75423104,135.9,135.86,0.561877]
[1767887430288,25.75423104,135.9,135.87,9.42930103]
[1767887430490,25.75423104,135.9,135.87,8.86742403]
[1767887430702,25.75423104,135.9,135.86,8.86742403]
[1767887432309,25.75423104,135.9,135.86,9.42930103]
[1767887432805,25.75423104,135.9,135.83,0.561877]
[1767887432806,26.47520603,135.9,135.83,0.561877]
[1767887433105,26.47520603,135.9,135.86,8.86742403]
[1767887434392,26.47520603,135.9,135.85,9.42930103]
[1767887435096,26.47520603,135.9,135.81,8.38362007]
[1767887435097,0.72097499,135.89,135.83,0.561877]
[1767887435298,0.72097499,135.89,135.83,8.86742403]
[1767887435491,0.72097499,135.88,135.85,8.86742403]
[1767887436288,18.39587932,135.9,135.87,9.42930103]
[1767887436512,18.39587932,135.9,135.85,0.561877]
[1767887436692,18.39587932,135.9,135.87,8.86742403]
[1767887436911,18.39587932,135.9,135.86,8.86742403]
[1767887437514,19.11685431,135.9,135.85,0.561877]
[1767887437706,19.11685431,135.9,135.83,9.42930103]
[1767887437707,0.72097499,135.89,135.83,9.42930103]
[1767887438392,25.75991756,135.87,135.83,0.561877]
[1767887438591,0.72097499,135.86,135.81,9.42930103]
[1767887438888,0.72097499,135.86,135.8,8.86742403]
[1767887439291,0.72097499,135.86,135.79,9.42930103]
[1767887440110,0.72097499,135.86,135.8,8.86742403]
[1767887440512,26.48468496,135.85,135.8,8.86742403]
[1767887440690,25.76370997,135.85,135.81,9.42930103]
[1767887441716,7.36070631,135.86,135.83,8.86742403]
[1767887441915,25.76200176,135.86,135.81,9.42930103]
[1767887442120,25.76200176,135.86,135.82,9.42930103]
[1767887442498,7.36070631,135.86,135.83,8.86742403]
[1767887445521,0.72097499,135.91,135.86,8.86742403]
[1767887445700,0.72097499,135.91,135.85,8.86742403]
[1767887446318,0.72097499,135.89,135.82,8.86742403]
[1767887446523,0.72097499,135.89,135.82,16.22988982]
[1767887446524,4.41598586,135.87,135.82,16.22988982]
[1767887446906,4.41598586,135.87,135.82,8.86742403]
[1767887447318,4.41598586,135.87,135.82,16.23009441]
[1767887447631,4.41598586,135.87,135.84,8.86742403]
[1767887448626,4.41598586,135.87,135.85,8.86742403]
[1767887448818,11.75938144,135.89,135.85,8.86742403]
[1767887449405,4.41501103,135.9,135.87,8.86742403]
[1767887450214,4.41501103,135.9,135.84,7.36153202]
[1767887450422,4.41501103,135.9,135.87,8.86742403]
[1767887450817,4.41501103,135.9,135.86,8.86742403]
[1767887451623,0.72097499,135.89,135.83,0.73621438]
[1767887451946,0.72097499,135.89,135.84,8.86742403]
[1767887452929,5.13663586,135.88,135.82,7.36231103]
[1767887453105,0.72097499,135.87,135.83,8.86742403]
[1767887454008,15.45481306,135.88,135.83,8.86742403]
[1767887454209,16.17578805,135.88,135.85,8.86742403]
[1767887454631,16.17578805,135.88,135.82,7.36266713]
[1767887454827,16.17578805,135.88,135.84,8.86742403]
[1767887455024,0.72097499,135.87,135.84,8.86742403]
[1767887455219,0.72097499,135.87,135.81,7.3630574]
[1767887455526,11.03915219,135.88,135.85,7.41742403]
[1767887457115,16.17578805,135.88,135.84,9.55973738]
[1767887457316,0.72097499,135.87,135.84,8.86742403]
[1767887457526,15.45481306,135.88,135.84,8.86742403]
[1767887458034,15.45481306,135.88,135.84,9.55973738]
[1767887458214,4.41566087,135.88,135.86,9.55973738]
[1767887458643,4.41534999,135.89,135.86,9.55973738]
[1767887458838,0.72097499,135.91,135.88,8.86742403]
[1767887459041,4.41507722,135.9,135.88,8.86742403]
[1767887460442,4.41404143,135.93,135.89,0.69231335]
[1767887460741,4.41404143,135.93,135.9,9.55973738]
[1767887461049,5.13501642,135.93,135.89,8.86742403]
[1767887462246,16.17010801,135.93,135.89,8.86742403]
[1767887462635,16.17010801,135.93,135.85,21.53691739]
[1767887462833,16.17010801,135.93,135.88,8.86742403]
[1767887464156,16.17010801,135.93,135.88,9.59215971]
[1767887465040,5.13501642,135.93,135.88,9.59215971]
[1767887465246,5.13501642,135.93,135.89,0.69109187]
[1767887465645,14.33092607,135.93,135.88,8.86742403]
[1767887465840,4.41404143,135.93,135.9,0.69109187]
[1767887467554,0.66884763,135.92,135.89,8.86742403]
[1767887467853,0.66884763,135.92,135.87,0.69109187]
[1767887468043,0.66884763,135.92,135.87,9.5585159]
[1767887468251,3.67875363,135.92,135.89,8.86742403]
[1767887468552,3.67875363,135.92,135.89,3.46881638]
[1767887468748,3.67875363,135.92,135.88,4.15990825]
[1767887468949,3.67875363,135.92,135.89,3.46881638]
[1767887469133,3.67875363,135.92,135.88,4.15990825]
[1767887469651,13.54418748,135.92,135.88,3.46881638]
[1767887469840,0.66884763,135.91,135.87,3.46881638]
[1767887470750,3.67917586,135.9,135.87,3.46881638]
[1767887471461,3.67903628,135.91,135.88,4.15990825]
[1767887471840,3.67903628,135.91,135.89,3.46881638]
[1767887472546,3.67903628,135.91,135.88,3.46881638]
[1767887473252,3.67903628,135.91,135.89,3.46881638]
[1767887473650,3.67903628,135.91,135.87,0.69109187]
[1767887473861,3.67903628,135.91,135.89,3.46881638]
[1767887474660,3.67903628,135.91,135.89,8.8579661]
[1767887475170,3.67903628,135.91,135.86,0.69109187]
[1767887475171,13.5451468,135.91,135.86,0.69109187]
[1767887475343,13.5451468,135.91,135.87,8.8579661]
[1767887476164,15.82394883,135.94,135.91,0.69109187]
[1767887476548,0.1,135.98,135.93,8.8579661]
[1767887476856,0.1,135.98,135.95,8.8579661]
[1767887477240,12.96954891,135.98,135.9,0.73583517]
[1767887477442,0.66884763,135.97,135.93,8.8579661]
[1767887478057,4.44586823,135.98,135.95,8.8579661]
[1767887478580,0.66884763,135.97,135.92,8.8579661]
[1767887479075,12.87143277,135.96,135.92,8.8579661]
[1767887479251,12.87143277,135.96,135.93,8.8579661]
[1767887479772,3.67755222,135.96,135.94,8.8579661]
[1767887479981,3.67755222,135.96,135.95,8.8579661]
[1767887480273,3.67755222,135.96,135.94,8.8579661]
[1767887481242,12.87048613,135.97,135.93,8.8579661]
[1767887481455,13.53933376,135.97,135.92,8.8579661]
[1767887481857,13.53933376,135.97,135.93,8.8579661]
[1767887484053,0.66884763,135.96,135.92,8.8579661]
[1767887484575,0.66884763,135.96,135.9,5.45056104]
[1767887484743,0.66884763,135.95,135.9,5.45056104]
[1767887484949,0.66884763,135.95,135.91,5.45056104]
[1767887485354,0.66884763,135.95,135.87,8.09573006]
[1767887485355,2.94269109,135.93,135.87,8.09573006]
[1767887485864,2.94269109,135.93,135.9,5.45056104]
[1767887486167,2.94252918,135.94,135.92,5.45056104]